bitfinex/quotes_ETHUSD_20250620
["timestamp","ask_amount","ask_price","bid_price","bid_amount"]
[1750452196976,17.6071206,2433.4,2433.3,5.55122939]
[1750452197274,10.3845603,2433.4,2433.3,5.55122939]
[1750452197482,10.76909112,2433.4,2433.3,5.55122939]
[1750452197678,10.76908062,2433.4,2433.3,5.55122939]
[1750452197868,10.76904886,2433.4,2433.3,5.55122939]
[1750452198791,10.76902941,2433.4,2433.3,5.55122939]
[1750452198947,10.76897578,2433.4,2433.3,5.55122939]
[1750452199146,10.76897578,2433.4,2433.3,10.32122939]
[1750452199750,10.76890135,2433.4,2433.3,10.32122939]
[1750452200453,10.76891573,2433.4,2433.3,10.32122939]
[1750452200654,10.76889927,2433.4,2433.3,8.87964533]
[1750452201859,10.76890228,2433.4,2433.3,8.87964533]
[1750452202382,10.76889778,2433.4,2433.3,8.87964533]
[1750452202558,10.76889778,2433.4,2433.3,4.77]
[1750452202953,10.38444664,2433.4,2433.3,8.87964533]
[1750452203255,10.76894717,2433.4,2433.3,8.87964533]
[1750452203665,10.76893327,2433.4,2433.3,8.87964533]
[1750452203870,10.76893327,2433.4,2433.3,5.47480652]
[1750452204075,10.0,2433.4,2433.3,5.47480652]
[1750452204289,10.76891283,2433.4,2433.3,5.47480652]
[1750452204794,10.76890998,2433.4,2433.3,5.47480652]
[1750452204958,10.38445499,2433.4,2433.3,5.47480652]
[1750452205161,10.76890346,2433.4,2433.3,5.47480652]
[1750452205680,0.76890346,2433.4,2433.3,5.47480652]
[1750452205885,0.38445499,2433.4,2433.3,5.47480652]
[1750452206266,0.76894777,2433.4,2433.3,5.47480652]
[1750452206466,0.38445499,2433.4,2433.3,5.47480652]
[1750452206772,16.835,2433.5,2433.4,4.10947645]
[1750452207091,17.60398593,2433.5,2433.4,4.16967645]
[1750452207493,17.60398692,2433.5,2433.4,4.16967645]
[1750452207691,17.60398092,2433.5,2433.4,4.16967645]
[1750452208196,17.60396266,2433.5,2433.4,4.16967645]
[1750452208759,17.60398678,2433.5,2433.4,4.16967645]
[1750452208959,17.60400327,2433.5,2433.4,4.10947645]
[1750452209173,17.60400337,2433.5,2433.4,4.10947645]
[1750452209368,17.60401046,2433.5,2433.4,4.10947645]
[1750452209776,17.60401041,2433.5,2433.3,4.10957342]
[1750452209981,0.76901041,2433.4,2433.3,4.10957342]
[1750452210332,0.76901654,2433.4,2433.3,4.10957342]
[1750452210495,0.76903267,2433.4,2433.3,4.10957342]
[1750452211161,0.76905186,2433.4,2433.3,4.10957342]
[1750452211469,0.76908451,2433.4,2433.3,4.10957342]
[1750452211875,10.07408451,2433.4,2433.3,4.17047342]
[1750452212198,7.60303752,2433.4,2433.3,4.17047342]
[1750452212363,0.76903752,2433.4,2433.3,4.17047342]
[1750452212563,7.60203752,2433.4,2433.3,4.17047342]
[1750452213260,6.833,2433.4,2433.3,4.17047342]
[1750452213594,7.60234406,2433.4,2433.3,4.17047342]
[1750452213889,7.60234406,2433.4,2433.3,8.94047342]
[1750452214300,0.76934406,2433.4,2433.3,8.87957342]
[1750452214467,7.60234589,2433.4,2433.3,8.94047342]
[1750452214799,7.60234592,2433.4,2433.3,8.94047342]
[1750452215195,7.21754139,2433.4,2433.3,8.94047342]
[1750452215403,7.60234573,2433.4,2433.3,8.94047342]
[1750452215702,7.60274231,2433.4,2433.3,8.94047342]
[1750452215904,7.60274232,2433.4,2433.3,8.94047342]
[1750452216201,7.60282929,2433.4,2433.3,8.94047342]
[1750452217101,7.60282826,2433.4,2433.3,8.94047342]
[1750452217502,7.60284002,2433.4,2433.3,8.94047342]
[1750452217810,7.60284002,2433.4,2433.3,8.87957342]
[1750452218499,7.21794757,2433.4,2433.3,8.87957342]
[1750452218701,7.60289481,2433.4,2433.3,8.87957342]
[1750452219000,7.21794757,2433.4,2433.3,8.87957342]
[1750452219300,7.60323566,2433.4,2433.3,8.87957342]
[1750452220506,7.60325133,2433.4,2433.3,8.87957342]
[1750452221208,7.60325527,2433.4,2433.3,8.87957342]
[1750452221410,7.60325522,2433.4,2433.3,8.87957342]
[1750452221614,7.60325197,2433.4,2433.3,8.87957342]
[1750452222014,7.60342132,2433.4,2433.3,8.87957342]
[1750452224014,7.21821066,2433.4,2433.3,8.87957342]
[1750452224206,7.60343428,2433.4,2433.3,8.87957342]
[1750452224788,7.21825889,2433.4,2433.3,8.87957342]
[1750452224989,7.60351778,2433.4,2433.3,8.87957342]
[1750452225185,7.60351648,2433.4,2433.3,8.87957342]
[1750452226507,7.603556,2433.4,2433.3,8.87957342]
[1750452228018,7.60355966,2433.4,2433.3,8.87957342]
[1750452228408,7.21827983,2433.4,2433.3,8.87957342]
[1750452228600,7.60354959,2433.4,2433.3,8.87957342]
[1750452229632,7.60355528,2433.4,2433.3,8.87957342]
[1750452230518,7.60355523,2433.4,2433.3,8.87957342]
[1750452230834,7.60351828,2433.4,2433.3,8.87957342]
[1750452231933,7.60352706,2433.4,2433.3,8.87957342]
[1750452232235,7.60352706,2433.4,2433.3,8.94047342]
[1750452232417,7.60352706,2433.4,2433.3,8.87957342]
[1750452233698,7.60361412,2433.4,2433.3,8.87957342]
[1750452233902,0.38530706,2433.4,2433.3,8.87957342]
[1750452234100,7.21230706,2433.4,2433.3,8.87957342]
[1750452234316,7.59760848,2433.4,2433.3,8.87957342]
[1750452234835,7.59760756,2433.4,2433.3,8.87957342]
[1750452235037,7.59761415,2433.4,2433.3,8.87957342]
[1750452235399,7.59761528,2433.4,2433.3,8.87957342]
[1750452235600,7.21230819,2433.4,2433.3,8.87957342]
[1750452235797,7.59761358,2433.4,2433.3,8.87957342]
[1750452236750,7.59760168,2433.4,2433.3,8.87957342]
[1750452237147,0.77060168,2433.4,2433.3,8.87957342]
[1750452237311,7.59659796,2433.4,2433.3,8.87957342]
[1750452237642,7.59670576,2433.4,2433.3,4.10957342]
[1750452237811,7.82791824,2433.4,2433.3,4.10957342]
[1750452238011,7.82792209,2433.4,2433.3,4.10957342]
[1750452238238,7.82792311,2433.4,2433.3,4.10957342]
[1750452238444,7.59671008,2433.4,2433.2,4.10976671]
[1750452238647,2.19551008,2433.3,2433.2,4.10981423]
[1750452238824,2.19552078,2433.3,2433.2,4.10981423]
[1750452239026,1.81016574,2433.3,2433.2,4.10981423]
[1750452239347,2.1955366,2433.3,2433.2,4.10981423]
[1750452239547,1.32073658,2433.3,2433.2,4.10981423]
[1750452239711,0.77073658,2433.3,2433.2,4.17071423]
[1750452239910,11.3372,2433.6,2433.5,4.10930758]
[1750452240110,20.97417528,2433.6,2433.5,4.10930758]
[1750452240363,20.97417516,2433.6,2433.5,4.10930758]
[1750452240532,20.97418675,2433.6,2433.5,4.10930758]
[1750452240730,20.97418675,2433.6,2433.5,3.84201879]
[1750452241044,20.97420116,2433.6,2433.5,3.84201879]
[1750452241246,10.97420116,2433.6,2433.5,3.84201879]
[1750452241451,20.97420207,2433.6,2433.5,3.84201879]
[1750452241750,12.33918967,2433.6,2433.5,3.84201879]
[1750452241951,20.97419339,2433.6,2433.5,3.84201879]
[1750452242136,22.6579798,2433.6,2433.5,3.84201879]
[1750452242537,22.27260296,2433.6,2433.5,3.84201879]
[1750452242735,11.55197538,2433.6,2433.5,3.84201879]
[1750452242914,20.18697538,2433.6,2433.5,3.90041879]
[1750452243117,19.5703591,2433.6,2433.5,3.84201879]
[1750452243437,20.18693433,2433.6,2433.5,3.84201879]
[1750452244043,20.18693433,2433.6,2433.4,4.10943223]
[1750452244044,10.0,2433.5,2433.4,4.10946493]
[1750452244246,11.00197499,2433.5,2433.4,4.10946493]
[1750452244449,1.00198157,2433.5,2433.4,4.10946493]
[1750452244636,7.82598157,2433.5,2433.4,4.99766493]
[1750452244828,7.82596599,2433.5,2433.4,4.99766493]
[1750452245152,7.82595901,2433.5,2433.4,4.99766493]
[1750452245929,7.5947125,2433.5,2433.4,4.99766493]
[1750452246340,7.59471161,2433.5,2433.4,4.99766493]
[1750452246737,0.77071161,2433.5,2433.4,4.99766493]
[1750452246942,0.77071161,2433.5,2433.4,5.90838936]
[1750452247345,0.38535625,2433.5,2433.4,5.90838936]
[1750452247544,0.77070703,2433.5,2433.4,4.99766493]
[1750452247746,0.38526051,2433.5,2433.4,4.99766493]
[1750452247945,6.823,2433.6,2433.5,4.10930758]
[1750452248145,7.82468151,2433.6,2433.5,4.16770758]
[1750452248454,7.82467937,2433.6,2433.5,4.16770758]
[1750452248753,7.59352424,2433.6,2433.5,4.16770758]
[1750452249252,7.82468279,2433.6,2433.5,4.16770758]
[1750452249457,7.59351733,2433.6,2433.5,8.93770758]
[1750452249618,7.82467061,2433.6,2433.5,8.93770758]
[1750452250230,7.8246796,2433.6,2433.5,8.93770758]
[1750452250640,7.59341886,2433.6,2433.5,8.93770758]
[1750452250843,7.82454452,2433.6,2433.5,8.93770758]
[1750452251339,7.82454452,2433.6,2433.5,8.87930758]
[1750452251921,7.8245489,2433.6,2433.5,8.87930758]
[1750452252460,7.82454956,2433.6,2433.5,8.87930758]
[1750452252824,7.5934239,2433.6,2433.5,8.93770758]
[1750452253327,7.8245468,2433.6,2433.5,8.93770758]
[1750452253528,7.59340775,2433.6,2433.5,8.93770758]
[1750452253952,7.59336418,2433.6,2433.5,8.93770758]
[1750452254467,17.59336476,2433.6,2433.5,8.93770758]
[1750452255935,17.59336294,2433.6,2433.5,8.93770758]
[1750452256364,17.59324933,2433.6,2433.5,8.93770758]
[1750452256865,17.59324625,2433.6,2433.5,8.93770758]
[1750452257959,17.59324625,2433.6,2433.5,8.87930758]
[1750452258460,17.59324545,2433.6,2433.5,8.87930758]
[1750452258632,17.58924545,2433.6,2433.5,8.93770758]
[1750452259269,17.58917812,2433.6,2433.5,8.93770758]
[1750452259765,17.20408906,2433.6,2433.5,8.93770758]
[1750452260067,17.58917171,2433.6,2433.5,8.93770758]
[1750452260262,17.20408265,2433.6,2433.5,8.93770758]
[1750452260569,17.58914267,2433.6,2433.5,8.93770758]
[1750452261366,17.20408265,2433.6,2433.5,8.93770758]
[1750452261570,17.2040538,2433.6,2433.5,8.93770758]
[1750452261737,17.58909921,2433.6,2433.5,8.87930758]
[1750452262069,17.20405799,2433.6,2433.5,8.87930758]
[1750452262276,17.58911496,2433.6,2433.5,8.87930758]
[1750452262885,10.77011496,2433.6,2433.5,8.87930758]
[1750452263050,17.58712656,2433.6,2433.5,8.87930758]
[1750452263235,19.42690201,2433.6,2433.5,8.87930758]
[1750452263571,17.58715498,2433.6,2433.5,8.87930758]
[1750452263938,19.00595498,2433.6,2433.5,4.77]
[1750452264165,18.13716696,2433.6,2433.5,4.10930758]
[1750452265067,18.13715192,2433.6,2433.5,4.10930758]
[1750452265237,18.1371424,2433.6,2433.5,4.10930758]
[1750452265437,17.58713471,2433.6,2433.5,4.10930758]
[1750452265640,17.58713471,2433.6,2433.5,4.16770758]
[1750452266171,17.58713607,2433.6,2433.5,4.16770758]
[1750452267300,17.58713607,2433.6,2433.5,4.10930758]
[1750452267663,17.58717275,2433.6,2433.5,4.10930758]
[1750452268159,17.58717275,2433.6,2433.4,4.10941399]
[1750452268360,0.77017275,2433.5,2433.4,4.10941399]
[1750452269496,0.77023942,2433.5,2433.4,4.10941399]
[1750452270376,0.77025635,2433.5,2433.4,4.10941399]
[1750452270578,0.77037271,2433.5,2433.4,4.10941399]
[1750452270779,17.367,2433.6,2433.5,4.10930758]
[1750452270978,0.55,2433.4,2433.3,8.87954785]
[1750452271165,31.81957474,2433.4,2433.3,4.77]
[1750452271895,30.81806905,2433.4,2433.3,4.77]
[1750452272099,31.43448156,2433.4,2433.3,4.77]
[1750452272295,31.81974036,2433.4,2433.3,4.77]
[1750452272667,3.021,2433.2,2432.8,4.11042384]
[1750452272867,0.55,2432.8,2432.7,9.79387061]
[1750452273099,8.13462869,2432.8,2432.7,9.79387061]
[1750452273469,8.13483532,2432.8,2432.7,9.79387061]
[1750452274407,18.13483532,2432.8,2432.7,9.79387061]
[1750452274710,11.32083532,2432.8,2432.7,9.79387061]
[1750452274887,18.13483532,2432.8,2432.7,9.85357061]
[1750452275218,10.77083532,2432.8,2432.7,9.79387061]
[1750452275371,10.76991314,2432.8,2432.7,12.48790724]
[1750452275572,0.76990848,2432.8,2432.7,12.48790724]
[1750452275982,0.76990848,2432.8,2432.7,17.25790724]
[1750452276401,0.76877936,2432.8,2432.7,17.25790724]
[1750452277498,0.38428854,2432.8,2432.7,17.25790724]
[1750452277698,0.76851544,2432.8,2432.7,17.25790724]
[1750452278111,0.38428854,2432.8,2432.7,17.25790724]
[1750452278798,1.3458,2433.3,2433.2,4.10981423]
[1750452279114,21.74474295,2433.3,2433.2,4.10981423]
[1750452279324,22.12883757,2433.3,2433.2,4.10981423]
[1750452279500,13.51683757,2433.3,2433.2,4.10981423]
[1750452279702,22.12783755,2433.3,2433.2,4.10981423]
[1750452279881,22.12783641,2433.3,2433.2,4.10981423]
[1750452280201,22.12783951,2433.3,2433.2,4.10981423]
[1750452280403,22.12779023,2433.3,2433.2,4.10981423]
[1750452280912,10.55,2433.2,2433.1,4.10987881]
[1750452281213,11.31812301,2433.2,2433.1,4.10987881]
[1750452281525,11.31815235,2433.2,2433.1,4.10987881]
[1750452282095,11.31815384,2433.2,2433.1,4.10987881]
[1750452282496,11.31816915,2433.2,2433.1,4.10987881]
[1750452282703,11.31817085,2433.2,2433.1,4.10987881]
[1750452282908,11.3181688,2433.2,2433.1,4.10987881]
[1750452283078,1.3181688,2433.2,2433.1,4.10987881]
[1750452283294,11.31816401,2433.2,2433.1,4.10987881]
[1750452283490,14.22609255,2433.2,2432.9,4.77]
[1750452283728,1.3635,2433.0,2432.9,4.77]
[1750452283885,2.13165178,2433.0,2432.9,8.88032101]
[1750452284286,9.92815178,2433.0,2432.9,8.88032101]
[1750452284485,9.92815178,2433.0,2432.9,8.94002101]
[1750452284887,10.0,2433.2,2433.1,4.10998314]
[1750452285087,9.37795814,2433.2,2433.1,4.16968314]
[1750452285456,7.57895814,2433.2,2433.1,4.16968314]
[1750452285629,7.57895914,2433.2,2433.1,4.16968314]
[1750452285997,7.57795914,2433.2,2433.1,4.16968314]
[1750452286202,7.57795914,2433.2,2433.1,5.4608792]
[1750452286510,7.57792738,2433.2,2433.1,5.4608792]
[1750452286712,7.19394831,2433.2,2433.1,5.4608792]
[1750452286929,0.76795741,2433.2,2433.1,10.2308792]
[1750452287103,6.81,2433.4,2433.3,4.10964533]
[1750452287300,7.57795589,2433.4,2433.3,4.16934533]
[1750452287828,7.57794952,2433.4,2433.3,4.16934533]
[1750452288216,7.57795006,2433.4,2433.3,4.16934533]
[1750452288595,10.76793073,2433.4,2433.3,4.16934533]
[1750452289193,0.76793073,2433.4,2433.3,4.16934533]
[1750452289395,0.76797649,2433.4,2433.3,4.16934533]
[1750452289927,0.76798807,2433.4,2433.3,4.16934533]
[1750452290436,0.38401331,2433.4,2433.3,4.16934533]
[1750452290631,0.76806688,2433.4,2433.3,4.16934533]
[1750452290835,0.76806635,2433.4,2433.3,4.16934533]
[1750452291729,0.38403339,2433.4,2433.3,4.16934533]
[1750452291939,0.76810259,2433.4,2433.3,4.16934533]
[1750452292138,0.76810638,2433.4,2433.3,4.16934533]
[1750452292434,0.38407299,2433.4,2433.3,4.16934533]
[1750452292596,0.38407287,2433.4,2433.3,4.16934533]
[1750452292801,0.76815129,2433.4,2433.3,4.16934533]
[1750452293239,0.76816607,2433.4,2433.3,4.16934533]
[1750452293531,10.0,2433.5,2433.4,4.10947645]
[1750452293718,10.38409284,2433.5,2433.4,4.10947645]
[1750452293922,10.76818568,2433.5,2433.4,4.10947645]
[1750452294638,10.76822156,2433.5,2433.4,4.16917645]
[1750452295916,10.76834461,2433.5,2433.4,4.16917645]
[1750452296416,10.76840788,2433.5,2433.4,4.16917645]
[1750452296926,10.76840154,2433.5,2433.4,4.16917645]
[1750452297505,10.76840154,2433.5,2433.4,4.10947645]
[1750452297701,10.76840236,2433.5,2433.4,4.10947645]
[1750452297927,10.76843601,2433.5,2433.4,4.10947645]
[1750452298138,10.76851209,2433.5,2433.4,4.10947645]
[1750452298840,10.38427875,2433.5,2433.4,4.10947645]
[1750452299011,10.76855214,2433.5,2433.4,4.10947645]
[1750452299737,10.76855214,2433.5,2433.4,4.16917645]
[1750452299909,10.0,2433.5,2433.4,4.16917645]
[1750452300104,10.76851964,2433.5,2433.4,4.16917645]
[1750452300305,0.76851964,2433.5,2433.4,8.93917645]
[1750452300504,0.3842739,2433.5,2433.4,11.03515863]
[1750452300946,11.798,2433.8,2433.7,4.10896988]
[1750452301142,12.56646792,2433.8,2433.7,4.16866988]
[1750452301344,12.56647441,2433.8,2433.7,4.10896988]
[1750452301950,12.18225823,2433.8,2433.7,4.10896988]
[1750452302106,12.56651007,2433.8,2433.7,4.10896988]
[1750452302519,12.18225823,2433.8,2433.7,4.10896988]
[1750452302720,12.56636701,2433.8,2433.7,4.10896988]
[1750452303734,12.56636701,2433.8,2433.6,4.10905384]
[1750452303921,0.76836701,2433.7,2433.6,4.10905384]
[1750452304743,0.76836701,2433.7,2433.6,4.16565384]
[1750452304952,13.43256905,2434.2,2433.6,4.16565384]
[1750452304953,10.0,2434.1,2433.7,4.99176988]
[1750452305151,7.353,2434.1,2434.0,4.10831724]
[1750452305353,8.12103806,2434.1,2434.0,4.10831724]
[1750452305862,0.38401903,2434.1,2434.0,9.71421724]
[1750452306917,6.803,2434.3,2434.2,4.10812587]
[1750452307268,7.57019189,2434.3,2434.2,8.87812587]
[1750452307420,8.12019189,2434.3,2434.2,4.77]
[1750452307759,8.12024848,2434.3,2434.2,8.87812587]
[1750452308141,8.12031189,2434.3,2434.2,8.87812587]
[1750452308524,7.73668773,2434.3,2434.2,8.87812587]
[1750452308853,8.12037577,2434.3,2434.2,8.87812587]
[1750452309030,1.31737577,2434.3,2434.2,8.87812587]
[1750452309217,8.11837577,2434.3,2434.2,8.87812587]
[1750452309418,8.1179064,2434.3,2434.2,8.87812587]
[1750452309841,8.11791049,2434.3,2434.2,8.87812587]
[1750452310044,7.7344532,2434.3,2434.2,8.87812587]
[1750452310252,8.11791049,2434.3,2434.2,8.87812587]
[1750452310455,7.351,2434.3,2434.2,8.87812587]
[1750452310660,8.11790354,2434.3,2434.2,8.87812587]
[1750452311065,7.73445177,2434.3,2434.2,8.87812587]
[1750452311247,8.11791413,2434.3,2434.2,8.87812587]
[1750452311459,8.11791413,2434.3,2434.2,4.10812587]
[1750452311978,8.1179136,2434.3,2434.2,4.10812587]
[1750452312134,8.11791363,2434.3,2434.2,4.10812587]
[1750452312336,8.11792373,2434.3,2434.2,4.10812587]
[1750452312551,8.11792369,2434.3,2434.2,4.10812587]
[1750452313037,8.11780143,2434.3,2434.2,4.10812587]
[1750452313237,7.351,2434.3,2434.0,4.77]
[1750452313537,7.351,2434.3,2434.0,8.8783461]
[1750452313538,2.17719087,2434.2,2434.0,8.8783461]
[1750452313761,18.11570873,2434.1,2434.0,8.8783461]
[1750452314137,18.1158697,2434.1,2434.0,8.9349461]
[1750452314333,0.7668697,2434.1,2434.0,11.04949755]
[1750452314576,3.59246178,2434.6,2434.5,4.10761963]
[1750452314876,4.35936734,2434.6,2434.5,4.16421963]
[1750452315060,3.59246178,2434.6,2434.5,4.95391963]
[1750452315392,1.792,2435.3,2435.2,4.10643889]
[1750452315599,10.0,2435.2,2435.0,0.7897]
[1750452315763,10.0,2435.2,2435.1,4.10660185]
[1750452315963,10.76605906,2435.2,2435.1,4.10660185]
[1750452316199,10.76603648,2435.2,2435.1,4.10660185]
[1750452317166,10.76618446,2435.2,2435.1,4.10660185]
[1750452317367,17.56318446,2435.2,2435.1,4.10660185]
[1750452318376,1.3647,2435.1,2434.6,4.77]
[1750452318577,7.1796513,2435.0,2434.9,4.10685838]
[1750452319020,6.797,2435.0,2434.9,4.10685838]
[1750452319615,16.796,2435.1,2435.0,4.16337618]
[1750452319767,17.17860677,2435.1,2435.0,4.10677618]
[1750452320311,17.17861065,2435.1,2435.0,8.87677618]
[1750452320514,16.796,2435.1,2435.0,8.87677618]
[1750452323391,16.796,2435.1,2435.0,8.93337618]
[1750452324631,10.0,2435.1,2435.0,8.93337618]
[1750452325430,10.0,2435.1,2435.0,8.87677618]
[1750452326229,0.55,2435.0,2434.9,4.10694484]
[1750452326431,7.343,2435.0,2434.9,4.10694484]
[1750452326642,2.471,2435.4,2434.9,0.7612]
[1750452326872,0.9860444,2436.4,2436.3,4.10458482]
[1750452326993,1.97969274,2436.4,2436.3,4.10458482]
[1750452327199,8.16114804,2436.4,2436.3,4.10458482]
[1750452327493,8.3290444,2436.4,2436.3,4.10458482]
[1750452327693,18.3290444,2436.4,2436.3,4.10458482]
[1750452327898,18.16049009,2436.4,2436.3,4.10458482]
[1750452328333,8.16049089,2436.4,2436.3,4.10458482]
[1750452328531,8.16049079,2436.4,2436.3,4.10458482]
[1750452328701,10.0,2436.3,2435.9,4.10516128]
[1750452328905,0.55,2436.1,2435.8,4.10537359]
[1750452329098,0.55,2436.1,2435.9,4.10525883]
[1750452329295,6.791,2436.0,2435.9,4.10525883]
[1750452329500,0.55,2436.2,2436.0,4.10509031]
[1750452329737,7.341,2436.1,2436.0,4.10509031]
[1750452333521,0.9860444,2436.4,2436.2,4.1047533]
[1750452333722,7.72130043,2436.3,2436.2,4.1047533]
[1750452334110,7.3996,2436.3,2436.1,4.10488337]
[1750452334310,7.3996,2436.3,2436.2,4.1047533]
[1750452334614,8.16222585,2436.3,2436.2,4.1047533]
[1750452334811,8.16222619,2436.3,2436.2,4.1047533]
[1750452335012,8.16222314,2436.3,2436.2,4.1047533]
[1750452335337,0.93153628,2436.3,2436.2,4.1047533]
[1750452335698,10.93137024,2436.3,2436.2,4.1047533]
[1750452335899,6.79,2436.3,2436.2,4.1047533]
[1750452336824,0.2231444,2436.4,2436.2,4.1047533]
[1750452336825,0.7731444,2436.4,2436.3,4.10458482]
[1750452337138,18.3260326,2436.4,2436.3,4.10458482]
[1750452337440,11.15458971,2436.4,2436.3,4.10458482]
[1750452337641,17.94358971,2436.4,2436.3,4.10458482]
[1750452338338,17.5621444,2436.4,2436.3,4.10458482]
[1750452338731,17.9434428,2436.4,2436.3,4.10458482]
[1750452339045,17.94344475,2436.4,2436.3,4.10458482]
[1750452339206,17.5621444,2436.4,2436.3,4.10458482]
[1750452339537,17.94344117,2436.4,2436.3,4.10458482]
[1750452339916,17.94366834,2436.4,2436.3,4.10458482]
[1750452340304,0.2231444,2436.4,2436.3,16.00765768]
[1750452341114,0.2231444,2436.4,2436.3,5.85628863]
[1750452341304,0.2231444,2436.4,2436.3,4.10458482]
[1750452341961,0.2231444,2436.4,2436.3,4.16178482]
[1750452342360,0.2231444,2436.4,2436.3,4.20282969]
[1750452342574,0.2231444,2436.4,2436.3,5.02202969]
[1750452345063,0.2231444,2436.4,2436.3,19.94339874]
[1750452345268,0.2231444,2436.4,2436.3,22.30716907]
[1750452345465,0.2231444,2436.4,2436.3,29.09416907]
[1750452347658,0.2231444,2436.4,2436.3,18.94280002]
[1750452351997,0.85918004,2437.2,2437.1,15.0747065]
[1750452352299,0.85918004,2437.2,2437.1,4.92333745]
[1750452354278,0.85918004,2437.2,2437.1,15.47659648]
[1750452357787,0.85918004,2437.2,2437.1,4.50512743]
[1750452357998,0.85918004,2437.2,2437.1,4.56232743]
[1750452358146,0.85918004,2437.2,2437.1,6.58439681]
[1750452358887,0.85918004,2437.2,2437.1,6.52719681]
[1750452359189,0.85918004,2437.2,2437.1,7.34959681]
[1750452363953,0.85918004,2437.2,2437.1,14.07639681]
[1750452364585,0.85918004,2437.2,2437.1,6.12530683]
[1750452365450,1.62452916,2437.2,2437.1,6.12530683]
[1750452365658,1.62452916,2437.2,2437.1,4.10323745]
[1750452366293,1.62465528,2437.2,2437.1,4.10323745]
[1750452366448,1.68355528,2437.2,2437.1,4.10323745]
[1750452366648,0.0589,2437.0,2436.3,3.1913152]
[1750452366859,1.37437524,2436.9,2436.8,4.10374261]
[1750452367047,1.37444912,2436.9,2436.8,4.10374261]
[1750452367278,1.37452909,2436.9,2436.8,4.10374261]
[1750452367458,1.37453411,2436.9,2436.8,4.10374261]
[1750452367791,2.19073411,2436.9,2436.8,4.10374261]
[1750452368494,2.19100104,2436.9,2436.8,4.10374261]
[1750452369144,2.19125834,2436.9,2436.8,4.10374261]
[1750452369386,1.3693,2436.7,2436.6,4.10403571]
[1750452369570,0.76615834,2436.7,2436.6,4.10403571]
[1750452369759,0.85918004,2437.2,2437.1,4.10323745]
[1750452369960,1.62526028,2437.2,2437.1,4.10323745]
[1750452370277,1.62522711,2437.2,2437.1,4.10323745]
[1750452371086,1.24221072,2437.2,2437.1,4.10323745]
[1750452371405,1.62530823,2437.2,2437.1,4.10323745]
[1750452371561,1.62530821,2437.2,2437.1,4.10323745]
[1750452371764,1.62545359,2437.2,2437.1,4.10323745]
[1750452371948,1.24234307,2437.2,2437.1,4.10323745]
[1750452372294,1.62550546,2437.2,2437.1,4.10323745]
[1750452372591,1.24234307,2437.2,2437.1,4.10323745]
[1750452373165,1.24234059,2437.2,2437.1,4.10323745]
[1750452373360,1.24234126,2437.2,2437.1,4.10323745]
[1750452373564,1.24234617,2437.2,2437.1,4.10323745]
[1750452374175,0.8269,2437.0,2436.2,0.0569]
[1750452374396,0.8269,2437.0,2436.6,4.10400925]
[1750452374397,0.55,2436.7,2436.6,4.10400925]
[1750452374595,1.37578522,2436.7,2436.6,4.10400925]
[1750452374773,0.38344525,2436.7,2436.6,4.10400925]
[1750452374950,10.76689538,2436.7,2436.6,4.10400925]
[1750452375391,10.76685718,2436.7,2436.6,4.10400925]
[1750452375569,0.76685609,2436.7,2436.6,4.16090925]
[1750452375768,0.38340596,2436.7,2436.6,4.98742264]
[1750452375976,0.38340596,2436.7,2436.6,4.93052264]
[1750452376196,8.2298,2437.0,2436.9,4.10357421]
[1750452376501,8.99656098,2437.0,2436.9,4.10357421]
[1750452376858,8.99656164,2437.0,2436.9,4.10357421]
[1750452377058,8.93766164,2437.0,2436.9,4.10357421]
[1750452377285,1.21028149,2437.0,2436.9,4.10357421]
[1750452377489,8.38668457,2437.0,2436.9,4.10357421]
[1750452377658,8.38670348,2437.0,2436.9,4.10357421]
[1750452378586,8.00330174,2437.0,2436.9,4.10357421]
[1750452378789,8.38670605,2437.0,2436.9,4.10357421]
[1750452379200,8.00330174,2437.0,2436.9,4.10357421]
[1750452379384,8.38678419,2437.0,2436.9,4.10357421]
[1750452380363,1.59378419,2437.0,2436.9,4.10357421]
[1750452380563,8.38279304,2437.0,2436.9,4.10357421]
[1750452381092,7.99934652,2437.0,2436.9,4.10357421]
[1750452381301,8.38288931,2437.0,2436.9,4.10357421]
[1750452381596,8.44217238,2437.0,2436.9,4.10357421]
[1750452381753,8.44217999,2437.0,2436.9,4.10357421]
[1750452382375,8.44198342,2437.0,2436.9,4.10357421]
[1750452382861,8.99198342,2437.0,2436.9,4.10357421]
[1750452383207,7.55316579,2437.0,2436.9,4.10357421]
[1750452383390,7.55304688,2437.0,2436.9,4.10357421]
[1750452383567,8.10304944,2437.0,2436.9,4.10357421]
[1750452383771,8.16194944,2437.0,2436.9,4.10357421]
[1750452384266,8.16197201,2437.0,2436.9,4.10357421]
[1750452384791,8.1619628,2437.0,2436.9,4.10357421]
[1750452385597,8.16187258,2437.0,2436.9,4.10357421]
[1750452385890,8.10297258,2437.0,2436.9,4.10357421]
[1750452386289,8.10298732,2437.0,2436.9,4.10357421]
[1750452386497,8.10298647,2437.0,2436.9,4.10357421]
[1750452386862,8.16188647,2437.0,2436.9,4.10357421]
[1750452387069,8.16191241,2437.0,2436.9,4.10357421]
[1750452387403,8.1030299,2437.0,2436.9,4.10357421]
[1750452387586,8.10307255,2437.0,2436.9,4.10357421]
[1750452387790,8.10311159,2437.0,2436.9,4.10357421]
[1750452387973,8.16201159,2437.0,2436.9,4.10357421]
[1750452388179,18.16201159,2437.0,2436.9,4.10357421]
[1750452388587,18.16203911,2437.0,2436.9,4.10357421]
[1750452389113,18.1620901,2437.0,2436.9,4.10357421]
[1750452389607,11.37610903,2437.0,2436.9,4.10357421]
[1750452389906,19.9471272,2437.0,2436.9,4.10357421]
[1750452390204,19.94712168,2437.0,2436.9,4.10357421]
[1750452390368,19.94711541,2437.0,2436.9,4.10357421]
[1750452390902,19.94711775,2437.0,2436.9,4.10357421]
[1750452391076,1.3593,2436.9,2436.8,4.10362342]
[1750452391401,0.6089,2436.6,2436.5,4.10416769]
[1750452391600,17.77651004,2436.6,2436.5,4.10416769]
[1750452391810,10.6101,2436.5,2436.4,4.1043466]
[1750452392009,13.1644724,2436.5,2436.4,4.1043466]
[1750452392170,13.16462265,2436.5,2436.4,4.1043466]
[1750452392905,13.10452265,2436.5,2436.4,4.1043466]
[1750452393118,13.94052265,2436.5,2436.4,4.1043466]
[1750452393476,13.94043124,2436.5,2436.4,4.1043466]
[1750452393676,13.94043341,2436.5,2436.4,4.1043466]
[1750452394202,12.15343341,2436.5,2436.4,4.1043466]
[1750452394408,20.72443643,2436.5,2436.4,4.1043466]
[1750452394610,20.72443643,2436.5,2436.3,4.10450475]
[1750452394611,0.55,2436.4,2436.3,4.10450475]
[1750452394821,0.0601,2436.3,2436.2,4.10464226]
[1750452395118,17.77881864,2436.3,2436.2,4.10464226]
[1750452395318,18.1623424,2436.3,2436.2,4.10464226]
[1750452395608,11.3172424,2436.3,2436.2,4.10464226]
[1750452395809,19.8892424,2436.3,2436.2,4.10464226]
[1750452396597,19.88937294,2436.3,2436.2,4.10464226]
[1750452397709,19.88890161,2436.3,2436.2,4.10464226]